bitfinex-derivatives/quotes_BTCF0:USTF0_20260221
["timestamp","ask_amount","ask_price","bid_price","bid_amount"]
[1771673328448,0.01466,68231.0,68223.0,0.029324]
[1771673328652,0.01466,68231.0,68223.0,0.014662]
[1771673328854,0.01466,68231.0,68223.0,0.029324]
[1771673329348,0.014659,68235.0,68224.0,0.014661]
[1771673329555,0.014659,68236.0,68227.0,0.014661]
[1771673329855,0.014659,68238.0,68231.0,0.01466]
[1771673330058,0.029318,68238.0,68231.0,0.01466]
[1771673330349,0.014659,68238.0,68231.0,0.01466]
[1771673330554,0.014659,68237.0,68231.0,0.01466]
[1771673330858,0.014659,68236.0,68229.0,0.01466]
[1771673331053,0.014659,68235.0,68230.0,0.00088]
[1771673331252,0.014659,68235.0,68228.0,0.014661]
[1771673331759,0.014659,68235.0,68227.0,0.014661]
[1771673332352,0.01466,68233.0,68227.0,0.014661]
[1771673332950,0.01466,68233.0,68226.0,0.014661]
[1771673336359,0.01466,68231.0,68223.0,0.014662]
[1771673337561,0.014658,68241.0,68224.0,0.014661]
[1771673337756,0.014658,68238.0,68230.0,0.17883387]
[1771673337955,0.014659,68235.0,68230.0,0.17883387]
[1771673338155,0.014659,68237.0,68230.0,0.17883387]
[1771673338355,0.01466,68233.0,68230.0,0.17883387]
[1771673338555,0.014659,68235.0,68230.0,0.17883387]
[1771673338749,0.01466,68234.0,68226.0,0.014661]
[1771673338960,0.014659,68235.0,68226.0,0.014661]
[1771673339762,0.014659,68234.0,68226.0,0.014661]
[1771673339956,0.01466,68233.0,68225.0,0.17883387]
[1771673340264,0.01466,68233.0,68227.0,0.014661]
[1771673340463,0.029318,68235.0,68228.0,0.014661]
[1771673341169,0.014659,68234.0,68227.0,0.014661]
[1771673342367,0.014659,68234.0,68226.0,0.014661]
[1771673343363,0.01466,68232.0,68224.0,0.014661]
[1771673344265,0.02932,68232.0,68224.0,0.014661]
[1771673344464,0.01466,68231.0,68224.0,0.014661]
[1771673344872,0.01466,68232.0,68224.0,0.014661]
[1771673345065,0.01466,68231.0,68223.0,0.014662]
[1771673348276,0.01466,68232.0,68224.0,0.014661]
[1771673348775,0.014659,68234.0,68224.0,0.014661]
[1771673350285,0.014659,68234.0,68226.0,0.014661]
[1771673354091,0.014658,68239.0,68215.0,0.83633383]
[1771673354092,0.15943158,68239.0,68219.0,0.014663]
[1771673354381,0.17883387,68240.0,68215.0,0.70480568]
[1771673354382,0.014662,68224.0,68217.0,0.45594668]
[1771673354777,0.014662,68224.0,68217.0,0.47060968]
[1771673355479,0.014662,68223.0,68217.0,0.45594668]
[1771673358888,0.014662,68224.0,68217.0,0.47060968]
[1771673359593,0.029324,68224.0,68217.0,0.47060968]
[1771673359893,0.014662,68224.0,68217.0,0.47060968]
[1771673360793,0.014662,68223.0,68217.0,0.47060968]
[1771673361095,0.00799434,68227.0,68218.0,0.19678347]
[1771673361286,0.01466,68232.0,68223.0,0.014662]
[1771673361487,0.01466,68231.0,68224.0,0.014661]
[1771673361890,0.01466,68232.0,68225.0,0.014661]
[1771673362088,0.01466,68231.0,68225.0,0.014661]
[1771673362988,0.01466,68231.0,68224.0,0.014661]
[1771673364395,0.01466,68231.0,68223.0,0.014662]
[1771673365092,0.01466,68232.0,68224.0,0.014661]
[1771673366695,0.01466,68231.0,68224.0,0.014661]
[1771673367296,0.01466,68232.0,68224.0,0.014661]
[1771673367492,0.01466,68232.0,68225.0,0.014661]
[1771673367796,0.01466,68231.0,68223.0,0.014662]
[1771673369801,0.01466,68231.0,68224.0,0.014661]
[1771673369999,0.01466,68232.0,68224.0,0.014661]
[1771673370500,0.02932,68232.0,68224.0,0.014661]
[1771673370694,0.01466,68232.0,68224.0,0.014661]
[1771673370998,0.02932,68232.0,68224.0,0.014661]
[1771673371296,0.01466,68232.0,68224.0,0.014661]
[1771673371598,0.02932,68232.0,68224.0,0.014661]
[1771673371901,0.01466,68232.0,68224.0,0.014661]
[1771673374001,0.02932,68232.0,68224.0,0.014661]
[1771673374403,0.01466,68232.0,68224.0,0.014661]
[1771673374998,0.02932,68234.0,68226.0,0.014661]
[1771673375204,0.01466,68233.0,68226.0,0.014661]
[1771673378407,0.01466,68232.0,68224.0,0.029322]
[1771673378607,0.01466,68232.0,68225.0,0.014661]
[1771673381302,0.02932,68232.0,68224.0,0.014661]
[1771673382409,0.01466,68231.0,68224.0,0.014661]
[1771673382712,0.01466,68231.0,68223.0,0.014662]
[1771673383009,0.01466,68230.0,68222.0,0.014662]
[1771673383204,0.01466,68230.0,68222.0,0.029324]
[1771673383808,0.01466,68230.0,68222.0,0.014662]
[1771673384110,0.01466,68230.0,68223.0,0.014662]
[1771673384610,0.01466,68232.0,68223.0,0.014662]
[1771673384611,0.01466,68231.0,68223.0,0.014662]
[1771673385315,0.014661,68226.0,68218.0,0.014663]
[1771673386804,0.014661,68226.0,68219.0,0.014663]
[1771673387007,0.014661,68228.0,68219.0,0.014663]
[1771673387206,0.014661,68227.0,68219.0,0.014663]
[1771673390914,0.15562193,68227.0,68212.0,9.3e-07]
[1771673391210,0.014663,68220.0,68212.0,0.014664]
[1771673391404,0.014663,68219.0,68211.0,0.014664]
[1771673391602,0.014663,68219.0,68212.0,0.014664]
[1771673392309,0.014662,68221.0,68213.0,0.014664]
[1771673392510,0.014662,68220.0,68213.0,0.014664]
[1771673392915,0.014662,68220.0,68212.0,0.014664]
[1771673394915,0.014662,68220.0,68213.0,0.014664]
[1771673395515,0.014662,68221.0,68213.0,0.014664]
[1771673396017,0.014662,68220.0,68213.0,0.014664]
[1771673396816,0.014662,68221.0,68214.0,0.014664]
[1771673397623,0.014662,68221.0,68213.0,0.014664]
[1771673398114,0.014662,68222.0,68215.0,0.014663]
[1771673398315,0.014662,68222.0,68214.0,0.014664]
[1771673398814,0.014664,68212.0,68200.0,0.014667]
[1771673399014,0.014664,68212.0,68204.0,0.014666]
[1771673399213,0.014664,68212.0,68202.0,0.014666]
[1771673399416,0.014664,68212.0,68204.0,0.00799934]
[1771673399615,0.014664,68212.0,68205.0,0.014666]
[1771673399919,0.014665,68209.0,68199.0,0.014667]
[1771673400108,0.014665,68207.0,68199.0,0.014667]
[1771673400713,0.014665,68208.0,68200.0,0.014667]
[1771673401116,0.014665,68208.0,68199.0,0.014667]
[1771673401117,0.014664,68214.0,68204.0,0.014666]
[1771673401317,0.014664,68212.0,68204.0,0.014666]
[1771673402621,0.014664,68212.0,68204.0,0.029332]
[1771673403018,0.014664,68212.0,68204.0,0.014666]
[1771673403520,0.014664,68215.0,68206.0,0.014665]
[1771673403826,0.014664,68215.0,68207.0,0.014665]
[1771673404013,0.014664,68214.0,68207.0,0.014665]
[1771673404719,0.014664,68214.0,68206.0,0.014665]
[1771673405819,0.014663,68216.0,68208.0,0.014665]
[1771673406019,0.014663,68215.0,68208.0,0.014665]
[1771673406830,0.014663,68218.0,68209.0,0.014665]
[1771673407023,0.014662,68222.0,68216.0,0.014663]
[1771673407214,0.014661,68226.0,68215.0,0.014663]
[1771673407215,0.014662,68224.0,68215.0,0.014663]
[1771673407419,0.014662,68222.0,68215.0,0.014663]
[1771673407620,0.029324,68222.0,68215.0,0.014663]
[1771673407820,0.014662,68221.0,68215.0,0.014663]
[1771673408128,0.014662,68221.0,68216.0,0.014663]
[1771673408425,0.014662,68223.0,68217.0,0.014663]
[1771673408821,0.014662,68224.0,68218.0,0.014663]
[1771673409022,0.014661,68225.0,68218.0,0.014663]
[1771673409220,0.014662,68223.0,68217.0,0.014663]
[1771673410628,0.014661,68225.0,68220.0,0.014662]
[1771673410819,0.014662,68224.0,68219.0,0.014663]
[1771673411018,0.014662,68224.0,68218.0,0.014663]
[1771673411237,0.014662,68223.0,68218.0,0.014663]
[1771673411533,0.014662,68224.0,68218.0,0.029326]
[1771673411721,0.014662,68223.0,68218.0,0.014663]
[1771673411922,0.014661,68225.0,68219.0,0.014663]
[1771673412330,0.014662,68224.0,68219.0,0.014663]
[1771673412927,0.014662,68224.0,68218.0,0.014663]
[1771673413232,0.014662,68222.0,68215.0,0.014663]
[1771673413430,0.014662,68222.0,68216.0,0.014663]
[1771673414225,0.029324,68222.0,68215.0,0.014663]
[1771673414724,0.014662,68221.0,68214.0,0.014664]
[1771673414929,0.014662,68222.0,68215.0,0.014663]
[1771673415327,0.014662,68221.0,68214.0,0.014664]
[1771673417629,0.014662,68221.0,68213.0,0.014664]
[1771673417831,0.014662,68220.0,68213.0,0.014664]
[1771673418129,0.014662,68220.0,68212.0,0.014664]
[1771673418431,0.014663,68219.0,68211.0,0.014664]
[1771673419332,0.014662,68223.0,68211.0,0.014664]
[1771673419933,0.014662,68222.0,68211.0,0.014664]
[1771673420234,0.014662,68222.0,68213.0,0.014664]
[1771673421335,0.014662,68222.0,68215.0,0.014663]
[1771673422033,0.014662,68223.0,68216.0,0.014663]
[1771673422229,0.014662,68224.0,68216.0,0.014663]
[1771673422430,0.014662,68224.0,68217.0,0.014663]
[1771673422628,0.014661,68225.0,68217.0,0.014663]
[1771673423035,0.014661,68225.0,68217.0,0.029326]
[1771673423239,0.014661,68225.0,68218.0,0.014663]
[1771673423534,0.014659,68236.0,68212.0,0.014664]
[1771673423738,0.014661,68228.0,68220.0,0.014662]
[1771673424039,0.01466,68229.0,68222.0,0.00088]
[1771673424240,0.014661,68228.0,68221.0,0.014662]
[1771673424434,0.014661,68228.0,68220.0,0.014662]
[1771673424739,0.014661,68227.0,68220.0,0.014662]
[1771673425035,0.014661,68228.0,68221.0,0.014662]
[1771673425229,0.014661,68228.0,68220.0,0.014662]
[1771673425827,0.014661,68228.0,68220.0,0.029324]
[1771673426048,0.01466,68232.0,68220.0,0.029324]
[1771673426339,0.01466,68232.0,68221.0,0.014662]
[1771673426340,0.014661,68228.0,68221.0,0.014662]
[1771673427036,0.014661,68228.0,68222.0,0.00088]
[1771673427239,0.014661,68228.0,68221.0,0.014662]
[1771673428341,0.01466,68230.0,68221.0,0.014662]
[1771673429641,0.014661,68228.0,68221.0,0.014662]
[1771673429938,0.01466,68229.0,68221.0,0.014662]
[1771673430141,0.01466,68230.0,68222.0,0.014662]
[1771673430544,0.014661,68229.0,68221.0,0.014662]
[1771673431045,0.014661,68228.0,68221.0,0.014662]
[1771673432549,0.014659,68235.0,68221.0,0.014662]
[1771673432747,0.01466,68230.0,68222.0,0.014662]
[1771673432939,0.014661,68229.0,68221.0,0.014662]
[1771673433138,0.01466,68230.0,68221.0,0.014662]
[1771673433139,0.014661,68228.0,68221.0,0.014662]
[1771673434045,0.014661,68229.0,68221.0,0.014662]
[1771673434249,0.014661,68229.0,68222.0,0.014662]
[1771673434451,0.014661,68229.0,68221.0,0.014662]
[1771673435047,0.014661,68228.0,68221.0,0.014662]
[1771673435542,0.01466,68231.0,68220.0,0.014662]
[1771673435748,0.01466,68230.0,68221.0,0.014662]
[1771673435946,0.01466,68230.0,68222.0,0.014662]
[1771673436250,0.014661,68229.0,68222.0,0.014662]
[1771673436735,0.014661,68229.0,68221.0,0.014662]
[1771673437348,0.014661,68228.0,68221.0,0.014662]
[1771673437850,0.01466,68230.0,68222.0,0.014662]
[1771673438042,0.01466,68229.0,68222.0,0.014662]
[1771673438242,0.01466,68229.0,68221.0,0.014662]
[1771673438951,0.014661,68228.0,68221.0,0.014662]
[1771673439147,0.01466,68230.0,68221.0,0.014662]
[1771673439344,0.01466,68229.0,68221.0,0.014662]
[1771673440353,0.01466,68229.0,68221.0,0.029324]
[1771673440850,0.01466,68233.0,68221.0,0.029324]
[1771673441051,0.014661,68229.0,68221.0,0.014662]
[1771673442051,0.014661,68229.0,68223.0,0.00084]
[1771673442251,0.014661,68229.0,68221.0,0.014662]
[1771673442452,0.014661,68229.0,68221.0,0.029324]
[1771673442857,0.014661,68229.0,68221.0,0.014662]
[1771673443950,0.014661,68229.0,68221.0,0.029324]
[1771673444454,0.014661,68229.0,68221.0,0.014662]
[1771673445054,0.014661,68229.0,68221.0,0.029324]
[1771673445256,0.014661,68229.0,68221.0,0.014662]
[1771673446455,0.014661,68229.0,68222.0,0.014662]
[1771673447456,0.014661,68226.0,68218.0,0.014663]
[1771673448158,0.014661,68225.0,68217.0,0.014663]
[1771673449057,0.014661,68225.0,68211.0,0.014664]
[1771673449356,0.014662,68223.0,68215.0,0.014663]
[1771673449558,0.014662,68221.0,68210.0,0.46936]
[1771673449757,0.014662,68221.0,68211.0,0.014664]
[1771673449958,0.014662,68221.0,68212.0,0.014664]
[1771673450256,0.014663,68219.0,68211.0,0.014664]
[1771673451355,0.014662,68221.0,68211.0,0.014664]
[1771673451548,0.014662,68221.0,68213.0,0.014664]
[1771673453057,0.014662,68223.0,68211.0,0.014664]
[1771673453264,0.014662,68220.0,68211.0,0.014664]
[1771673453559,0.014662,68220.0,68212.0,0.014664]
[1771673453761,0.014662,68220.0,68213.0,0.014664]
[1771673454362,0.014662,68221.0,68214.0,0.014664]
[1771673454964,0.014662,68222.0,68213.0,0.014664]
[1771673455267,0.014662,68221.0,68214.0,0.014664]
[1771673455759,0.014662,68220.0,68213.0,0.014664]
[1771673455967,0.014663,68219.0,68211.0,0.014664]
[1771673456262,0.014663,68219.0,68212.0,0.014664]
[1771673457664,0.014662,68220.0,68213.0,0.014664]
[1771673458258,0.014663,68219.0,68211.0,0.014664]
[1771673458466,0.014662,68224.0,68206.0,0.014665]
[1771673458467,0.014663,68216.0,68206.0,0.014665]
[1771673458655,0.014664,68215.0,68206.0,0.014665]
[1771673459257,0.014662,68220.0,68201.0,0.014666]
[1771673459258,0.014664,68212.0,68204.0,0.014666]
[1771673459650,0.014664,68213.0,68206.0,0.014665]
[1771673460058,0.014664,68213.0,68207.0,0.00088]
[1771673460259,0.014664,68212.0,68205.0,0.014666]
[1771673460460,0.014664,68212.0,68204.0,0.014666]
[1771673460662,0.014665,68208.0,68200.0,0.17889492]
[1771673460862,0.014665,68208.0,68200.0,0.19356192]
[1771673461262,0.014665,68207.0,68200.0,0.17889492]
[1771673461461,0.014665,68207.0,68198.0,0.483987]
[1771673461667,0.014666,68206.0,68198.0,0.483987]
[1771673461856,0.014665,68207.0,68198.0,0.483987]
[1771673461857,0.014666,68205.0,68198.0,0.46932]
[1771673462061,0.014666,68204.0,68198.0,0.46932]
[1771673462262,0.014666,68205.0,68198.0,0.46932]
[1771673463369,0.014665,68209.0,68198.0,0.46932]
[1771673463573,0.014665,68208.0,68198.0,0.46932]
[1771673463780,0.014665,68208.0,68198.0,0.64821492]
[1771673463959,0.014665,68206.0,68190.0,0.17889492]
[1771673464364,0.014666,68205.0,68195.0,0.014668]
[1771673464770,0.014666,68204.0,68194.0,0.014668]
[1771673465273,0.014666,68204.0,68195.0,0.014668]
[1771673465672,0.014667,68201.0,68192.0,0.014668]
[1771673466468,0.014666,68202.0,68194.0,0.014668]
[1771673466968,0.014666,68202.0,68190.0,0.19356392]
[1771673466969,0.014666,68201.0,68193.0,0.014668]
[1771673467168,0.014667,68200.0,68193.0,0.014668]
[1771673467967,0.014666,68201.0,68193.0,0.014668]
[1771673468172,0.16645493,68207.0,68188.0,0.014669]
[1771673468370,0.014667,68197.0,68189.0,0.014669]
[1771673468665,0.014667,68198.0,68188.0,0.014669]
[1771673468666,0.014667,68198.0,68190.0,0.014669]
[1771673469068,0.014667,68198.0,68192.0,0.00088]
[1771673469268,0.014667,68198.0,68190.0,0.014669]
[1771673469671,0.014667,68197.0,68189.0,0.014669]
[1771673470871,0.014667,68198.0,68190.0,0.014669]
[1771673471470,0.014665,68206.0,68194.0,0.014668]
[1771673471664,0.014666,68201.0,68191.0,0.014669]
[1771673471867,0.014666,68201.0,68192.0,0.014668]
[1771673472068,0.014667,68200.0,68192.0,0.014668]
[1771673473773,0.014667,68200.0,68193.0,0.014668]
[1771673473975,0.014666,68201.0,68193.0,0.014668]
[1771673474277,0.014667,68200.0,68192.0,0.014668]
[1771673475179,0.014667,68197.0,68189.0,0.014669]
[1771673476668,0.014668,68196.0,68187.0,0.19356392]
[1771673476877,0.014668,68196.0,68188.0,0.014669]
[1771673477875,0.014668,68194.0,68187.0,0.014669]
[1771673478077,0.014668,68193.0,68185.0,0.01467]
[1771673478277,0.16364161,68209.0,68180.0,0.18662108]
[1771673478278,0.014669,68190.0,68180.0,0.00772616]
[1771673478482,0.17889492,68200.0,68176.0,0.00777804]
[1771673478483,0.01467,68187.0,68177.0,0.014672]
[1771673478672,0.01467,68187.0,68179.0,0.014671]
[1771673478873,0.014669,68188.0,68179.0,0.014671]
[1771673479475,0.014669,68188.0,68178.0,0.014671]
[1771673479476,0.01467,68187.0,68174.0,0.014672]
[1771673479682,0.01467,68187.0,68179.0,0.014671]
[1771673479886,0.01477369,68189.0,68180.0,0.014671]
[1771673480079,0.00010469,68189.0,68181.0,0.014671]
[1771673481484,0.01477369,68189.0,68181.0,0.014671]
[1771673482187,0.00010469,68189.0,68179.0,0.014671]
[1771673482386,0.014668,68195.0,68184.0,0.01467]
[1771673482589,0.014669,68192.0,68184.0,0.01467]
[1771673482790,0.014669,68192.0,68182.0,0.01467]
[1771673482791,0.014667,68197.0,68183.0,0.19199131]
[1771673482982,0.014667,68197.0,68188.0,0.014669]
[1771673482983,0.014668,68196.0,68188.0,0.014669]
[1771673483183,0.014668,68195.0,68188.0,0.014669]
[1771673483486,0.014668,68195.0,68189.0,0.014669]
[1771673484590,0.014668,68194.0,68188.0,0.014669]
[1771673485291,0.014668,68194.0,68187.0,0.014669]
[1771673485490,0.014668,68195.0,68188.0,0.014669]
[1771673485684,0.014668,68194.0,68188.0,0.014669]
[1771673486291,0.014669,68191.0,68185.0,0.01467]
[1771673486994,0.014669,68188.0,68180.0,0.19356592]
[1771673488303,0.01467,68186.0,68180.0,0.19356592]
[1771673488501,0.01467,68184.0,68177.0,0.014671]
[1771673488999,0.01467,68184.0,68176.0,0.19356692]
[1771673489202,0.01467,68186.0,68176.0,0.19356692]
[1771673489797,0.01467,68184.0,68176.0,0.19356692]
[1771673490503,0.01467,68183.0,68176.0,0.17889492]
[1771673490999,0.014671,68182.0,68173.0,0.02237428]
[1771673491196,0.014671,68181.0,68173.0,0.02237428]
[1771673491396,0.014671,68181.0,68173.0,0.00770228]
[1771673491596,0.00800434,68181.0,68173.0,0.00770228]
[1771673492404,0.01467,68183.0,68173.0,0.02237428]
[1771673493004,0.014671,68182.0,68174.0,0.014672]
[1771673493206,0.01467,68183.0,68174.0,0.014672]
[1771673493396,0.014671,68182.0,68174.0,0.014672]
[1771673494106,0.014671,68182.0,68173.0,0.00770228]
[1771673495293,0.014668,68193.0,68178.0,0.014671]
[1771673495498,0.014668,68192.0,68177.0,0.014671]
[1771673495704,0.014669,68191.0,68177.0,0.014671]
[1771673496206,0.014669,68191.0,68175.0,0.014672]
[1771673496207,0.014667,68197.0,68180.0,0.17889492]
[1771673496400,0.014669,68191.0,68180.0,0.17889492]
[1771673496802,0.014668,68192.0,68180.0,0.19356592]
[1771673497409,0.014669,68191.0,68181.0,0.014671]
[1771673497705,0.014669,68190.0,68180.0,0.19356592]
[1771673498209,0.014669,68190.0,68180.0,0.20823692]
[1771673498508,0.014669,68190.0,68182.0,0.01467]
[1771673499009,0.014669,68190.0,68182.0,0.02934]
[1771673499505,0.014669,68190.0,68182.0,0.01467]
[1771673499704,0.014669,68190.0,68183.0,0.01467]
[1771673500206,0.014669,68189.0,68182.0,0.01467]
[1771673500410,0.014669,68188.0,68179.0,0.014671]
[1771673500610,0.014669,68188.0,68180.0,0.014671]
[1771673500806,0.01467,68186.0,68179.0,0.014671]
[1771673501107,0.01467,68185.0,68178.0,0.014671]
[1771673501415,0.01467,68186.0,68178.0,0.014671]
[1771673502313,0.01467,68186.0,68177.0,0.014672]
[1771673502903,0.01467,68185.0,68174.0,0.014672]
[1771673504411,0.01467,68184.0,68174.0,0.014672]
[1771673505212,0.01467,68184.0,68175.0,0.014672]
[1771673505411,0.01467,68185.0,68174.0,0.014672]
[1771673505412,0.01467,68185.0,68176.0,0.014672]
[1771673506416,0.01467,68184.0,68176.0,0.014672]
[1771673506712,0.01467,68184.0,68175.0,0.014672]
[1771673508219,0.01467,68183.0,68175.0,0.014672]
[1771673509020,0.01467,68183.0,68176.0,0.014672]
[1771673510321,0.01467,68185.0,68177.0,0.014672]
[1771673510914,0.01467,68185.0,68175.0,0.014672]
[1771673511110,0.01467,68183.0,68174.0,0.014672]
[1771673511309,0.02934,68183.0,68174.0,0.014672]
[1771673511518,0.17889492,68190.0,68170.0,0.17889492]
[1771673511712,0.014671,68181.0,68172.0,0.014673]
[1771673511912,0.014669,68189.0,68173.0,0.02237428]
[1771673512118,0.014671,68181.0,68173.0,0.02237428]
[1771673514320,0.014669,68188.0,68173.0,0.00770228]
[1771673514520,0.01467,68186.0,68176.0,0.014672]
[1771673514817,0.01467,68186.0,68178.0,0.014671]
[1771673515020,0.01467,68185.0,68177.0,0.014672]
[1771673517320,0.01467,68184.0,68177.0,0.014672]
[1771673519916,0.01467,68184.0,68176.0,0.014672]
[1771673519917,0.01467,68183.0,68176.0,0.014672]
[1771673520121,0.01467,68184.0,68177.0,0.014671]
[1771673520423,0.014669,68187.0,68180.0,0.014671]
[1771673520623,0.014669,68187.0,68181.0,0.014671]
[1771673524430,0.029339,68187.0,68181.0,0.014671]
[1771673524630,0.01467,68186.0,68180.0,0.014671]
[1771673525020,0.01467,68185.0,68179.0,0.014671]
[1771673525517,0.01467,68185.0,68176.0,0.20969758]
[1771673525722,0.014672,68178.0,68173.0,0.00770228]
[1771673526026,0.014671,68180.0,68173.0,0.00770228]
[1771673526228,0.014671,68179.0,68173.0,0.00770228]
[1771673528431,0.014671,68180.0,68173.0,0.00770228]
[1771673529133,0.029342,68180.0,68173.0,0.00770228]
[1771673529523,0.014671,68179.0,68173.0,0.00770228]
[1771673530231,0.014671,68178.0,68173.0,0.00770228]
[1771673530930,0.014671,68179.0,68173.0,0.00770228]
[1771673531231,0.014671,68178.0,68173.0,0.00770228]
[1771673531431,0.014672,68177.0,68169.0,0.02293138]
[1771673533135,0.014671,68179.0,68169.0,0.02293138]
[1771673534129,0.014672,68177.0,68169.0,0.00825838]
[1771673534834,0.029344,68177.0,68169.0,0.00825838]
[1771673535029,0.014672,68177.0,68169.0,0.00825838]
[1771673535429,0.15452386,68185.0,68169.0,0.00825838]
[1771673535626,0.014673,68173.0,68169.0,0.00825838]
[1771673535826,0.014673,68173.0,68165.0,0.00681253]
[1771673536636,0.014673,68173.0,68165.0,0.02148653]
[1771673537535,0.029346,68173.0,68165.0,0.02148653]
[1771673537730,0.014673,68173.0,68165.0,0.02148653]
[1771673538131,0.029346,68173.0,68165.0,0.02148653]
[1771673538334,0.014673,68172.0,68165.0,0.02148653]
[1771673539039,0.014672,68173.0,68165.0,0.02148653]
[1771673539628,0.014672,68173.0,68166.0,0.014674]
[1771673541339,0.014672,68173.0,68165.0,0.02148653]
[1771673541839,0.014672,68174.0,68166.0,0.014674]
[1771673542040,0.014672,68178.0,68169.0,0.014673]
[1771673542240,0.014672,68175.0,68168.0,0.014673]
[1771673542537,0.014672,68173.0,68166.0,0.014674]
[1771673542932,0.014672,68173.0,68165.0,0.02148653]
[1771673543239,0.014673,68172.0,68165.0,0.02148653]
[1771673543738,0.014673,68171.0,68165.0,0.00681253]
[1771673543945,0.014673,68172.0,68165.0,0.02148653]
[1771673544340,0.014673,68172.0,68165.0,0.00681253]
[1771673544737,0.014673,68171.0,68165.0,0.00681253]
[1771673545642,0.014673,68172.0,68165.0,0.00681253]
[1771673546232,0.014673,68171.0,68165.0,0.00681253]
[1771673547239,0.014673,68172.0,68165.0,0.00681253]
[1771673548241,0.014672,68173.0,68165.0,0.00681253]
[1771673548544,0.014674,68169.0,68165.0,0.00681253]
[1771673548747,0.014674,68168.0,68162.0,0.00794039]
[1771673549048,0.014673,68170.0,68162.0,0.00794039]
[1771673549444,0.014673,68169.0,68162.0,0.00794039]
[1771673549645,0.014674,68168.0,68162.0,0.00794039]
[1771673550749,0.014674,68168.0,68161.0,0.014675]
[1771673551043,0.014673,68169.0,68161.0,0.014675]
[1771673551249,0.014673,68170.0,68162.0,0.014675]
[1771673552661,0.014673,68171.0,68162.0,0.014675]
[1771673553664,0.014673,68169.0,68159.0,0.014675]
[1771673553857,0.014674,68168.0,68159.0,0.014675]
[1771673554663,0.014674,68168.0,68158.0,0.02158272]
[1771673555361,0.014673,68169.0,68159.0,0.014675]
[1771673556366,0.014674,68168.0,68158.0,0.02158272]
[1771673557757,0.014674,68166.0,68158.0,0.00690672]
[1771673558156,0.014674,68167.0,68158.0,0.00690672]
[1771673558559,0.014674,68168.0,68158.0,0.00690672]
[1771673558752,0.014676,68156.0,68150.0,0.00014227]
[1771673558962,0.014676,68158.0,68147.0,0.0225748]
[1771673559379,1.25,68157.0,68147.0,0.0225748]
[1771673559565,0.16671736,68166.0,68151.0,0.014677]
[1771673559769,0.014674,68165.0,68153.0,0.014677]
[1771673559969,0.014675,68162.0,68153.0,0.014677]
[1771673560167,1.25,68162.0,68152.0,0.014677]
[1771673560371,1.25,68162.0,68150.0,0.014677]
[1771673560372,0.014675,68160.0,68150.0,0.014677]
[1771673560572,0.014675,68161.0,68151.0,0.014677]
[1771673560870,1.264675,68162.0,68152.0,0.014677]
[1771673561665,0.014675,68161.0,68151.0,0.014677]
[1771673561866,0.014675,68162.0,68152.0,0.014677]
[1771673562074,0.014675,68162.0,68156.0,0.0008]
[1771673562278,0.014675,68162.0,68152.0,0.014677]
[1771673562677,0.014675,68161.0,68151.0,0.014677]
[1771673562876,1.25,68163.0,68150.0,0.05741071]
[1771673563076,0.014673,68173.0,68159.0,0.014675]
[1771673563077,0.014673,68170.0,68159.0,0.014675]
[1771673563279,0.014674,68168.0,68155.0,0.014676]
[1771673563475,0.014674,68167.0,68156.0,0.014676]
[1771673563678,0.014674,68166.0,68156.0,0.014676]
[1771673564181,5.756e-05,68165.0,68156.0,0.014676]
[1771673566181,0.01473156,68165.0,68152.0,0.014677]
[1771673566377,0.01473156,68165.0,68140.0,0.02194963]
[1771673566378,0.014675,68163.0,68153.0,0.014677]
[1771673566784,5.756e-05,68165.0,68155.0,0.014676]
[1771673566986,5.756e-05,68165.0,68157.0,0.014676]
[1771673567583,5.756e-05,68165.0,68158.0,0.014676]
[1771673568786,5.756e-05,68165.0,68157.0,0.014676]
[1771673569589,0.014675,68164.0,68152.0,0.014677]
[1771673569887,0.014675,68163.0,68153.0,0.014677]
[1771673570579,0.014675,68163.0,68153.0,0.03736234]
[1771673571287,0.014675,68163.0,68153.0,0.05203934]
[1771673571586,0.014675,68162.0,68152.0,0.014677]
[1771673573488,0.014675,68161.0,68152.0,0.014677]
[1771673573690,0.02935,68163.0,68152.0,0.014677]
[1771673574191,0.014675,68162.0,68152.0,0.029354]
[1771673574384,0.014675,68162.0,68152.0,0.014677]
[1771673574583,0.014675,68161.0,68153.0,0.02268534]
[1771673575485,0.014675,68161.0,68152.0,0.014677]
[1771673575686,0.014675,68161.0,68152.0,0.03736234]
[1771673577477,0.014676,68158.0,68149.0,0.014678]
[1771673578089,0.014676,68158.0,68150.0,0.014677]
[1771673578288,0.014676,68158.0,68149.0,0.014678]
[1771673578692,0.014676,68157.0,68148.0,0.014678]
[1771673579191,0.014676,68158.0,68149.0,0.014678]
[1771673579388,0.014676,68157.0,68148.0,0.014678]
[1771673579586,0.014676,68158.0,68148.0,0.014678]
[1771673579793,0.014676,68157.0,68148.0,0.014678]
[1771673580588,0.014676,68158.0,68149.0,0.014678]
[1771673580794,0.014676,68158.0,68149.0,0.029355]
[1771673580994,0.014676,68158.0,68149.0,0.029354]
[1771673581193,0.014676,68158.0,68149.0,0.014677]
[1771673581389,0.014675,68160.0,68147.0,0.0078968]
[1771673581390,0.17922895,68160.0,68147.0,0.0078968]
[1771673581597,0.014677,68154.0,68147.0,0.0078968]
[1771673581789,0.014677,68154.0,68143.0,0.02261813]
[1771673581790,0.014677,68152.0,68143.0,0.02261813]
[1771673582300,0.014677,68152.0,68144.0,0.014679]
[1771673582596,0.014677,68152.0,68143.0,0.02261813]
[1771673582998,0.014677,68152.0,68143.0,0.03729713]
[1771673583397,0.014677,68152.0,68143.0,0.02261813]